bitfinex-derivatives/quotes_SOLF0:USTF0_20240923
["timestamp","ask_amount","ask_price","bid_price","bid_amount"]
[1727108910418,15.04,143.61,143.53,16.3932]
[1727108910606,18.5216,143.61,143.58,3.482]
[1727108911014,15.04,143.61,143.53,16.3932]
[1727108911215,18.5215,143.61,143.58,3.4819]
[1727108912518,6.95706757,143.6,143.57,3.4822]
[1727108912719,3.47536757,143.6,143.57,3.4822]
[1727108913316,3.47536757,143.6,143.53,16.3932]
[1727108913317,15.04,143.59,143.53,1.3532]
[1727108914118,3.4823,143.58,143.56,3.4826]
[1727108916226,3.4823,143.58,143.52,1.3886]
[1727108916227,15.04,143.57,143.54,3.4829]
[1727108916620,18.51397491,143.57,143.54,3.4829]
[1727108917426,3.4825,143.57,143.55,3.4828]
[1727108917624,15.04,143.58,143.55,3.4828]
[1727108918023,21.95190728,143.58,143.55,3.4828]
[1727108918426,18.5224,143.58,143.55,3.4828]
[1727108919422,3.4824,143.57,143.55,3.4828]
[1727108920032,15.04,143.6,143.51,15.04]
[1727108920632,3.4821,143.59,143.56,3.4825]
[1727108920827,3.4821,143.59,143.51,15.04]
[1727108921031,18.5218,143.6,143.51,15.04]
[1727108921233,15.04,143.6,143.51,15.04]
[1727108921934,15.04,143.6,143.56,3.4825]
[1727108921935,3.482,143.59,143.56,3.4825]
[1727108922833,18.58782997,143.6,143.56,3.4825]
[1727108923321,3.482,143.59,143.56,3.4825]
[1727108926433,3.482,143.59,143.51,15.04]
[1727108926632,18.5218,143.6,143.51,15.04]
[1727108927138,18.5218,143.6,143.58,3.482]
[1727108927634,18.5218,143.6,143.57,3.4822]
[1727108929226,3.4819,143.59,143.57,3.4822]
[1727108932344,18.5218,143.6,143.57,3.4822]
[1727108932644,18.5218,143.6,143.58,3.4821]
[1727108932841,15.04,143.62,143.53,15.04]
[1727108933142,3.4815,143.61,143.54,1.4476]
[1727108933638,3.4815,143.61,143.59,3.4818]
[1727108934042,3.4815,143.61,143.55,1.3372]
[1727108934244,3.4815,143.61,143.58,3.4819]
[1727108935450,18.5213,143.62,143.59,3.4818]
[1727108935747,15.04,143.64,143.57,15.04]
[1727108935946,4.0786,143.67,143.56,1.4243]
[1727108936146,15.04,143.61,143.55,1.3372]
[1727108936445,15.04,143.61,143.57,3.4822]
[1727108936640,3.482,143.59,143.57,3.4822]
[1727108937338,3.4818,143.6,143.57,3.4822]
[1727108938144,3.4819,143.59,143.57,3.4822]
[1727108938541,3.4824,143.57,143.46,6.9699]
[1727108938843,18.5224,143.57,143.49,1.3961]
[1727108939039,3.4824,143.57,143.49,1.3961]
[1727108939342,15.04,143.56,143.54,3.4829]
[1727108941147,3.4829,143.55,143.52,3.4835]
[1727108941348,15.04,143.54,143.52,3.4835]
[1727108941543,15.04,143.54,143.49,1.3961]
[1727108941944,15.04,143.54,143.51,3.4838]
[1727108942153,15.04,143.54,143.49,1.3961]
[1727108942354,15.04,143.53,143.49,1.3961]
[1727108942651,15.04,143.53,143.45,79.97395547]
[1727108942953,15.04,143.49,143.44,1.3614]
[1727108943153,18.4395485,143.49,143.44,1.3614]
[1727108943353,15.04,143.48,143.44,1.3614]
[1727108944259,15.04,143.5,143.44,1.3614]
[1727108944749,2.7667,143.52,143.44,1.3614]
[1727108944750,21.2904,143.52,143.44,1.3614]
[1727108945056,24.77052615,143.52,143.44,1.3614]
[1727108945356,16.3868,143.52,143.44,1.3614]
[1727108945545,16.3868,143.52,143.44,2.8217]
[1727108945745,19.8705,143.52,143.44,2.8217]
[1727108946048,23.27113619,143.52,143.44,2.8217]
[1727108946352,23.27113619,143.52,143.47,3.4846]
[1727108946552,23.27113619,143.52,143.44,2.8217]
[1727108947257,18.44063619,143.52,143.44,2.8217]
[1727108948054,18.5231,143.54,143.44,17.8617]
[1727108948256,15.04,143.54,143.45,1.4379]
[1727108948752,3.4835,143.53,143.49,3.4842]
[1727108948948,3.48800725,143.52,143.49,3.4842]
[1727108949152,18.524,143.51,143.45,1.4379]
[1727108949352,15.04,143.51,143.47,3.4847]
[1727108949754,15.04,143.5,143.47,3.4847]
[1727108950856,15.04,143.5,143.48,3.4845]
[1727108951259,19.8494,143.51,143.48,3.4845]
[1727108951459,16.3655,143.51,143.44,1.3614]
[1727108951957,15.04,143.5,143.44,1.3614]
[1727108952663,16.3655,143.51,143.44,1.3614]
[1727108953461,19.8494,143.51,143.48,3.4844]
[1727108953662,16.3655,143.51,143.44,1.3614]
[1727108953959,1.4146,143.58,143.44,16.4014]
[1727108953960,15.04,143.53,143.44,16.4014]
[1727108954457,15.04,143.53,143.5,3.4839]
[1727108954960,18.5234,143.53,143.5,3.4839]
[1727108955162,3.55493661,143.52,143.44,16.4014]
[1727108955362,15.04,143.51,143.44,1.3614]
[1727108955568,15.04,143.51,143.48,3.4843]
[1727108956853,15.04,143.51,143.49,3.4843]
[1727108957255,15.04,143.51,143.44,1.3614]
[1727108959274,3.4835,143.53,143.44,16.4014]
[1727108959485,15.04,143.54,143.44,16.4014]
[1727108960160,18.5233,143.54,143.51,3.4838]
[1727108960875,3.4834,143.53,143.5,3.484]
[1727108961171,15.04,143.54,143.44,16.4014]
[1727108961365,3.4835,143.53,143.5,3.484]
[1727108962073,15.04,143.54,143.46,15.04]
[1727108962667,15.04,143.54,143.44,1.3614]
[1727108962668,15.04,143.52,143.44,16.4014]
[1727108962873,18.51322922,143.52,143.44,1.3614]
[1727108963074,3.484,143.51,143.48,3.4845]
[1727108964571,18.51322922,143.52,143.48,3.4845]
[1727108965178,3.4839,143.51,143.48,3.4845]
[1727108966073,18.5237,143.52,143.44,16.4014]
[1727108967173,18.5237,143.52,143.49,3.4841]
[1727108970685,18.5237,143.52,143.5,3.4841]
[1727108970982,22.08382547,143.52,143.44,16.4014]
[1727108971279,22.08382547,143.52,143.49,3.4842]
[1727108972279,15.04,143.5,143.44,1.3614]
[1727108973079,18.53323664,143.51,143.48,3.4845]
[1727108973276,15.04,143.51,143.44,1.3614]
[1727108973979,3.4842,143.5,143.48,3.4845]
[1727108974376,3.4837,143.52,143.49,3.4842]
[1727108974578,15.04,143.53,143.44,16.4014]
[1727108974977,18.5235,143.53,143.5,3.4839]
[1727108975681,1.4042,143.57,143.44,1.3614]
[1727108975682,15.04,143.51,143.44,1.3614]
[1727108975882,18.45839897,143.51,143.44,1.3614]
[1727108976282,21.94249897,143.51,143.48,3.4845]
[1727108977283,3.4841,143.5,143.48,3.4845]
[1727108977978,6.90239897,143.51,143.48,3.4845]
[1727108978179,3.484,143.51,143.48,3.4845]
[1727108978681,6.96618678,143.51,143.48,3.4845]
[1727108979473,3.4841,143.5,143.48,3.4845]
[1727108979676,3.4841,143.5,143.44,1.3614]
[1727108979885,3.4841,143.5,143.47,3.4848]
[1727108980683,15.04,143.48,143.4,24.8336]
[1727108980887,15.04,143.46,143.4,11.2312]
[1727108981381,15.04,143.46,143.44,3.4854]
[1727108981581,15.04,143.48,143.4,19.2982]
[1727108981772,15.04,143.48,143.46,3.4849]
[1727108981978,16.3843,143.5,143.42,15.04]
[1727108982174,15.04,143.5,143.42,15.04]
[1727108982384,1.3988,143.55,143.51,3.4839]
[1727108982385,3.4835,143.53,143.51,3.4839]
[1727108983186,15.04,143.54,143.5,3.484]
[1727108983485,15.04,143.52,143.44,15.04]
[1727108983683,18.5238,143.52,143.44,15.04]
[1727108983986,15.04,143.52,143.44,15.04]
[1727108984284,2.7797,143.55,143.46,15.04]
[1727108984285,18.5232,143.54,143.46,15.04]
[1727108984484,18.5232,143.54,143.47,1.3694]
[1727108984691,18.5232,143.54,143.51,3.4837]
[1727108984990,4.8639,143.55,143.47,1.3694]
[1727108985181,4.8639,143.55,143.47,4.1738]
[1727108985377,4.8639,143.55,143.52,3.4834]
[1727108985785,18.5233,143.54,143.47,4.1738]
[1727108987091,15.04,143.54,143.51,3.4838]
[1727108987282,1.3809,143.55,143.47,19.2138]
[1727108987485,15.04,143.58,143.49,15.04]
[1727108987688,3.4822,143.58,143.49,15.04]
[1727108987895,19.84134331,143.6,143.54,3.483]
[1727108988487,3.4825,143.57,143.54,3.483]
[1727108989892,15.04,143.58,143.54,3.483]
[1727108990091,15.04,143.56,143.53,3.4833]
[1727108990595,3.483,143.55,143.48,15.04]
[1727108991189,15.04,143.54,143.47,4.1738]
[1727108991896,3.4836,143.53,143.49,3.4842]
[1727108992397,3.4836,143.53,143.5,3.484]
[1727108992693,3.4836,143.52,143.5,3.484]
[1727108992893,18.5236,143.52,143.47,1.3694]
[1727108993193,15.04,143.52,143.47,1.3694]
[1727108994795,18.5236,143.52,143.5,3.484]
[1727108994995,18.5236,143.52,143.47,1.3694]
[1727108995791,15.04,143.52,143.47,1.3694]
[1727108995990,15.04,143.52,143.49,3.4842]
[1727108996186,18.5238,143.52,143.49,3.4842]
[1727108996387,18.48998257,143.52,143.49,3.4842]
[1727108996994,18.48998257,143.52,143.48,3.4845]
[1727108997398,3.484,143.51,143.48,3.4845]
[1727108997698,18.48998257,143.52,143.49,3.4843]
[1727108998090,21.97378257,143.52,143.49,3.4843]
[1727108998696,3.4839,143.51,143.49,3.4843]
[1727108999499,3.4841,143.5,143.48,3.4845]
[1727109000292,15.04,143.51,143.47,3.4847]
[1727109000508,15.04,143.49,143.42,1.3911]
[1727109000695,15.04,143.47,143.42,1.3911]
[1727109000898,15.04,143.47,143.44,3.4855]
[1727109001292,18.5249,143.47,143.44,3.4855]
[1727109001494,15.04,143.47,143.44,3.4855]
[1727109001693,15.04,143.45,143.39,81.3372737]
[1727109001898,1.37,143.5,143.39,80.0043737]
[1727109001899,3.4856,143.44,143.39,80.0043737]
[1727109002094,15.04,143.43,143.39,80.0043737]
[1727109002699,15.04,143.45,143.39,80.0043737]
[1727109003103,18.5254,143.45,143.39,80.0043737]
[1727109003500,15.04,143.45,143.39,80.0043737]
[1727109003699,3.4857,143.44,143.39,80.0043737]
[1727109003899,15.04,143.45,143.39,80.0043737]
[1727109004301,18.5254,143.45,143.42,3.4858]
[1727109005008,15.04,143.45,143.39,80.0043737]
[1727109005208,15.04,143.43,143.39,80.0043737]
[1727109005408,15.04,143.43,143.41,3.4862]
[1727109008308,15.04,143.43,143.42,3.486]
[1727109008511,15.04,143.43,143.39,80.0043737]
[1727109008903,15.04,143.43,143.41,3.4861]
[1727109009501,18.5258,143.43,143.4,3.4864]
[1727109010509,3.486,143.42,143.39,3.4867]
[1727109011011,18.5259,143.43,143.37,1.3867]
[1727109011304,18.5259,143.43,143.4,3.4864]
[1727109012409,15.04,143.43,143.37,1.3867]
[1727109012711,15.04,143.39,143.33,1.4466]
[1727109013011,15.04,143.38,143.33,1.4466]
[1727109013210,18.5272,143.38,143.35,3.4876]
[1727109013610,3.488,143.34,143.31,3.4886]
[1727109013820,15.04,143.34,143.29,2.8378]
[1727109014316,3.50694013,143.33,143.27,1.4466]
[1727109014515,15.04,143.34,143.27,1.4466]
[1727109014706,18.47403875,143.34,143.27,1.4466]
[1727109015202,18.47403875,143.34,143.3,3.4888]
[1727109016513,21.96213875,143.34,143.3,3.4888]
[1727109017307,15.04,143.36,143.27,1.4466]
[1727109017719,15.04,143.36,143.34,3.4878]
[1727109018017,18.58355179,143.36,143.28,15.04]
[1727109018214,22.07105179,143.36,143.33,3.488]
[1727109018423,22.07105179,143.36,143.28,15.04]
[1727109018721,18.58355179,143.36,143.28,15.04]
[1727109018921,3.4878,143.35,143.32,3.4883]
[1727109019520,22.07115179,143.36,143.33,3.4882]
[1727109019918,22.07115179,143.36,143.27,1.4466]
[1727109019919,15.04,143.38,143.28,15.04]
[1727109020120,18.5272,143.38,143.35,3.4876]
[1727109020419,2.7664,143.41,143.27,1.4466]
[1727109020420,15.04,143.39,143.3,15.04]
[1727109021013,18.5269,143.39,143.36,3.4874]
[1727109021214,18.5269,143.39,143.3,15.04]
[1727109021720,18.5269,143.39,143.36,3.4873]
[1727109022719,1.4326,143.41,143.32,15.04]
[1727109022919,1.4326,143.41,143.33,1.4257]
[1727109023130,1.4326,143.41,143.39,3.4866]
[1727109023315,1.4326,143.41,143.33,1.4257]
[1727109023625,15.04,143.38,143.33,1.4257]
[1727109023820,15.04,143.34,143.26,32.1707]
[1727109024017,15.04,143.34,143.27,1.4257]
[1727109024225,15.04,143.34,143.32,3.4883]
[1727109026322,18.5281,143.34,143.32,3.4883]
[1727109026527,15.04,143.34,143.32,3.4883]
[1727109026829,15.04,143.36,143.27,1.4257]
[1727109027021,18.5276,143.36,143.28,15.04]
[1727109028024,18.5276,143.36,143.33,3.488]
[1727109028529,3.4877,143.35,143.33,3.488]
[1727109028729,15.04,143.34,143.33,3.488]
[1727109029026,18.528,143.34,143.32,3.4885]
[1727109029530,15.04,143.34,143.32,3.4885]
[1727109029721,15.04,143.34,143.29,1.4022]
[1727109030422,15.04,143.34,143.32,3.4883]
[1727109030624,15.04,143.34,143.29,1.4022]
[1727109031333,18.5281,143.34,143.29,1.4022]
[1727109031630,15.04,143.34,143.27,1.4257]
[1727109031927,18.5281,143.34,143.31,3.4885]
[1727109032125,15.04,143.34,143.27,1.4257]
[1727109032328,3.4887,143.32,143.27,1.4257]
[1727109032521,3.4887,143.32,143.26,10.1509]
[1727109033318,3.4887,143.32,143.29,3.4891]
[1727109033729,15.04,143.33,143.29,3.4892]
[1727109034129,3.4888,143.31,143.26,10.1509]
[1727109034441,15.04,143.31,143.27,3.4895]
[1727109034640,3.4891,143.3,143.26,10.1509]
[1727109034931,15.04,143.31,143.26,10.1509]
[1727109035134,15.04,143.33,143.26,10.1509]
[1727109035725,3.4889,143.31,143.26,10.1509]
[1727109035939,3.4889,143.31,143.27,3.4895]
[1727109036129,15.04,143.33,143.26,10.1509]
[1727109036433,3.4891,143.3,143.26,13.6407]
[1727109036629,15.04,143.33,143.26,10.1509]
[1727109037037,2.7981,143.35,143.26,10.1509]
[1727109037233,1.3349,143.4,143.28,15.04]
[1727109037435,15.04,143.37,143.28,15.04]
[1727109037737,3.4881,143.34,143.3,3.4889]
[1727109038333,15.04,143.35,143.26,25.1909]
[1727109038735,15.04,143.35,143.27,3.4896]
[1727109039138,3.4889,143.31,143.27,3.4896]
[1727109039344,15.04,143.29,143.26,10.1509]
[1727109039735,3.4897,143.27,143.26,10.1509]
[1727109040544,18.5297,143.27,143.26,10.1509]
[1727109041133,22.10141989,143.27,143.26,10.1509]
[1727109041329,18.5297,143.27,143.26,10.1509]
[1727109041935,3.4897,143.27,143.26,10.1509]
[1727109043023,15.04,143.31,143.26,10.1509]
[1727109044032,4.87859571,143.33,143.26,10.1509]
[1727109044442,3.4887,143.31,143.27,3.4895]
[1727109044638,4.87859571,143.33,143.26,25.1909]
[1727109044941,19.91859571,143.33,143.26,10.1509]
[1727109045739,3.4894,143.29,143.26,10.1509]
[1727109045938,19.91859571,143.33,143.26,10.1509]
[1727109046237,3.4897,143.27,143.26,10.1509]
[1727109047244,15.04,143.31,143.26,10.1509]
[1727109048333,3.4896,143.28,143.26,10.1509]
[1727109048533,15.04,143.31,143.26,10.1509]
[1727109049435,15.04,143.32,143.26,10.1509]
[1727109049834,15.04,143.32,143.26,13.6408]
[1727109050035,15.04,143.32,143.26,10.1509]
[1727109050438,3.4893,143.29,143.26,10.1509]
[1727109050940,3.4893,143.29,143.26,13.6407]
[1727109051135,4.87859571,143.33,143.26,25.1909]
[1727109051737,3.4891,143.3,143.27,3.4896]
[1727109052448,3.4892,143.29,143.27,3.4896]
[1727109053148,19.91859571,143.33,143.26,10.1509]
[1727109053340,4.87859571,143.33,143.26,10.1509]
[1727109053541,15.04,143.31,143.26,10.1509]
[1727109053740,3.4897,143.27,143.26,10.1509]
[1727109057240,3.4895,143.28,143.26,10.1509]
[1727109058034,3.4897,143.27,143.26,10.1509]
[1727109059637,3.4896,143.28,143.26,10.1509]
[1727109059838,19.91859571,143.33,143.26,10.1509]
[1727109060951,15.04,143.31,143.26,10.1509]
[1727109061453,3.4897,143.27,143.26,10.1509]
[1727109061844,6.9771,143.32,143.19,15.04]
[1727109062056,3.4906,143.24,143.2,3.4913]
[1727109062244,15.04,143.29,143.21,15.04]
[1727109062750,3.4898,143.27,143.21,15.04]
[1727109063250,3.4899,143.26,143.21,15.04]
[1727109063647,3.4899,143.26,143.22,3.4908]
[1727109064348,15.04,143.31,143.22,3.4908]
[1727109064551,4.87859571,143.33,143.22,3.4908]
[1727109064756,15.04,143.3,143.22,3.4908]
[1727109064946,3.4901,143.26,143.22,3.4908]
[1727109065653,15.04,143.3,143.21,15.04]
[1727109065855,15.04,143.3,143.23,15.04]
[1727109066051,15.04,143.32,143.23,15.04]
[1727109066259,3.4898,143.27,143.23,15.04]
[1727109066455,15.04,143.32,143.23,15.04]
[1727109066654,3.53959571,143.33,143.28,3.4893]
[1727109066857,307.76,143.39,143.28,3.4893]
[1727109066858,15.04,143.37,143.28,18.5293]
[1727109067052,1.02680614,143.36,143.28,15.04]
[1727109067252,3.4887,143.32,143.28,18.5294]
[1727109067448,3.45727188,143.32,143.28,18.5294]
[1727109067643,15.04,143.37,143.28,18.5294]
[1727109067848,3.4886,143.32,143.28,18.5294]
[1727109068050,6.95145714,143.32,143.28,18.5294]
[1727109068259,3.4887,143.31,143.28,18.5294]
[1727109069055,15.04,143.38,143.3,15.04]
[1727109069246,83.76,143.39,143.3,15.04]
[1727109069556,15.04,143.4,143.32,3.4883]
[1727109069958,3.4877,143.36,143.32,3.4883]
[1727109070254,15.04,143.38,143.3,15.04]
[1727109070650,3.4881,143.34,143.3,15.04]
[1727109070846,7.00024574,143.34,143.3,18.5288]
[1727109071253,3.57461109,143.43,143.33,15.04]
[1727109071461,16.06706312,143.4,143.31,15.04]
[1727109071662,15.04,143.4,143.31,15.04]
[1727109071960,15.04,143.38,143.29,15.04]
[1727109072359,15.04,143.39,143.29,15.04]
[1727109072851,15.04,143.37,143.29,15.04]
[1727109073357,3.4878,143.35,143.3,3.4888]
[1727109073754,15.04,143.38,143.31,3.4887]
[1727109074253,15.04,143.38,143.29,15.04]
[1727109074454,3.4881,143.34,143.3,3.4887]
[1727109074653,6.94324834,143.34,143.3,3.4887]
[1727109075449,3.4881,143.34,143.3,3.4887]
[1727109075656,3.4878,143.35,143.29,15.04]
[1727109075955,15.04,143.38,143.31,15.04]
[1727109076157,86.57168005,143.41,143.32,15.04]
[1727109076654,86.57168005,143.41,143.33,3.4881]
[1727109076655,3.4874,143.37,143.33,3.4881]
[1727109077253,15.04,143.39,143.3,15.04]
[1727109077754,3.4879,143.35,143.31,3.4886]
[1727109078055,15.04,143.39,143.3,15.04]
[1727109078451,3.4876,143.36,143.32,3.4883]
[1727109079161,3.4876,143.36,143.33,3.4881]
[1727109079853,3.4876,143.36,143.32,3.4884]
[1727109080049,15.04,143.39,143.31,1.3894]
[1727109080456,3.4879,143.35,143.31,1.3894]
[1727109080662,3.47735045,143.34,143.31,1.3894]
[1727109080960,15.04,143.36,143.29,18.5291]
[1727109081261,15.04,143.36,143.29,3.4891]
[1727109082064,15.04,143.36,143.3,3.4889]
[1727109082263,15.04,143.36,143.28,15.04]
[1727109082764,15.04,143.36,143.3,3.4888]
[1727109083266,3.4884,143.33,143.3,3.4888]
[1727109083458,6.90400367,143.33,143.3,3.4888]
[1727109083762,3.41560367,143.33,143.29,3.4891]
[1727109083956,15.04,143.36,143.29,3.4891]
[1727109083957,3.4886,143.32,143.29,3.4891]
[1727109084167,3.43131,143.31,143.26,16.4294]
[1727109084458,3.4894,143.29,143.26,1.3894]
[1727109084666,3.4894,143.29,143.25,2.7472]
[1727109085058,3.4895,143.28,143.25,2.7472]
[1727109085367,15.04,143.3,143.25,1.3356]
[1727109085768,3.4899,143.27,143.25,1.3356]
[1727109085966,6.91597456,143.27,143.25,1.3356]
[1727109086364,3.4899,143.26,143.25,1.3356]
[1727109086571,15.04,143.29,143.21,1.3917]
[1727109087057,3.4901,143.26,143.21,1.3917]
[1727109087267,15.04,143.29,143.22,3.4907]
[1727109087457,3.4904,143.25,143.22,3.4907]
[1727109088265,3.4903,143.25,143.21,4.8826]
[1727109088463,3.4903,143.25,143.21,1.3917]
[1727109088766,3.4904,143.25,143.21,4.8827]
[1727109089167,7.02196865,143.25,143.21,1.3917]
[1727109089467,3.4904,143.25,143.21,1.3917]
[1727109090061,3.43728174,143.25,143.22,3.4909]
[1727109090274,3.49,143.26,143.22,3.4909]
[1727109090658,3.53750523,143.25,143.22,3.4908]
[1727109090861,15.04,143.28,143.22,3.4908]
[1727109091165,3.4901,143.26,143.22,3.4908]
[1727109092377,3.4901,143.26,143.23,3.4906]
[1727109092669,3.54309261,143.28,143.22,15.04]
[1727109092861,15.04,143.3,143.22,15.04]
[1727109093063,15.04,143.3,143.24,3.4903]
[1727109093064,3.4895,143.28,143.24,3.4903]
[1727109093263,3.41378165,143.27,143.24,3.4903]
[1727109093465,3.4895,143.28,143.22,15.04]
[1727109093664,6.90727206,143.29,143.24,15.04]
[1727109094065,6.90727206,143.29,143.25,3.4901]
[1727109094267,3.4895,143.28,143.25,3.4901]
[1727109094769,15.04,143.32,143.26,3.4899]
[1727109095067,3.50492292,143.29,143.26,3.4899]
[1727109095266,6.99432292,143.29,143.26,3.4899]
[1727109095467,6.99432292,143.29,143.25,3.4901]
[1727109095663,3.4894,143.29,143.25,3.4901]
[1727109095869,17.0,143.26,143.13,6.9862]
[1727109096065,15.04,143.26,143.19,2.8925]
[1727109096262,18.61317499,143.26,143.19,2.8925]
[1727109096565,3.4908,143.23,143.19,6.384]
[1727109096763,18.61317499,143.26,143.19,2.8925]
[1727109096964,18.61317499,143.26,143.19,6.3841]
[1727109098171,18.61317499,143.26,143.19,2.8925]
[1727109098864,15.04,143.3,143.2,15.04]
[1727109099065,18.60129933,143.3,143.2,16.4485]
[1727109099270,15.04,143.28,143.2,1.4085]
[1727109099774,15.04,143.28,143.21,3.491]
[1727109100365,3.4906,143.24,143.2,4.8997]
[1727109100566,3.4906,143.24,143.2,1.4085]
[1727109100965,3.4907,143.23,143.2,4.8998]
[1727109101167,15.04,143.28,143.2,1.4085]
[1727109101568,15.04,143.28,143.21,3.491]
[1727109102676,15.04,143.28,143.2,4.8998]
[1727109102867,3.4907,143.23,143.2,4.8998]
[1727109103571,3.491,143.22,143.19,6.384]
[1727109104074,15.04,143.26,143.19,6.384]
[1727109104272,15.04,143.26,143.19,2.8925]
[1727109104468,15.04,143.28,143.19,2.8925]
[1727109104673,15.04,143.28,143.19,4.2681]
[1727109104873,3.4907,143.24,143.19,4.2681]
[1727109105068,3.54742393,143.28,143.2,15.04]
[1727109105271,15.04,143.32,143.22,15.04]
[1727109105471,3.4894,143.29,143.22,15.04]
[1727109106173,3.4894,143.29,143.26,3.4898]
[1727109106671,3.489,143.3,143.27,3.4896]
[1727109107081,3.47129295,143.32,143.25,4.3477]
[1727109107268,3.489,143.31,143.25,4.3477]
[1727109107472,3.4833469,143.31,143.25,4.3477]
[1727109107676,15.04,143.32,143.25,4.3477]
[1727109108182,15.04,143.28,143.13,6.9859]
[1727109108379,15.04,143.28,143.18,15.04]
[1727109108585,15.04,143.28,143.19,1.4447]
[1727109108781,3.4903,143.25,143.22,3.4908]
[1727109109282,15.04,143.28,143.19,1.4447]
[1727109109983,15.04,143.28,143.21,3.491]
[1727109110690,6.9775,143.31,143.2,3.4913]
[1727109110879,15.04,143.27,143.2,3.4913]
[1727109111681,15.04,143.27,143.19,4.9362]
[1727109111886,15.04,143.25,143.19,4.9362]
[1727109112083,3.4912,143.21,143.19,1.4447]
[1727109112479,15.04,143.25,143.19,1.4447]
[1727109113492,3.4914,143.21,143.19,1.4447]
[1727109113692,3.44558247,143.23,143.19,1.4447]
[1727109113995,3.491,143.22,143.19,4.9362]
[1727109114207,15.04,143.25,143.19,1.4447]
[1727109114500,3.4912,143.21,143.19,1.4447]
[1727109114688,3.4912,143.21,143.18,3.4918]
[1727109115198,3.4912,143.21,143.19,3.4916]
[1727109115492,3.4912,143.21,143.17,1.4553]
[1727109115695,18.45449713,143.22,143.16,2.8452]
[1727109115897,15.04,143.2,143.13,1.3584]
[1727109116096,18.57699434,143.2,143.14,3.4927]
[1727109116301,3.492,143.18,143.14,3.4927]
[1727109116596,15.04,143.18,143.12,3.4932]
[1727109116796,15.04,143.18,143.11,1.422]
[1727109116797,3.4928,143.15,143.11,1.422]
[1727109117198,3.4928,143.15,143.12,3.4933]
[1727109117393,3.4925,143.16,143.12,3.4933]
[1727109117896,15.04,143.18,143.13,3.493]
[1727109118098,3.4925,143.16,143.11,1.422]
[1727109118400,15.04,143.16,143.11,3.4934]
[1727109118985,3.4928,143.15,143.11,3.4934]
[1727109119406,18.532,143.18,143.09,16.4875]
[1727109119595,18.57699434,143.2,143.11,15.04]
[1727109119792,18.57699434,143.2,143.15,3.4924]
[1727109119986,3.53699434,143.2,143.13,15.04]
[1727109120189,15.04,143.22,143.14,1.4535]
[1727109120699,18.55436359,143.22,143.15,3.4925]
[1727109120899,18.55436359,143.22,143.14,1.4535]
[1727109121195,3.4918,143.19,143.15,3.4924]
[1727109121698,3.4921,143.18,143.14,4.9463]
[1727109122102,18.55436359,143.22,143.14,1.4535]
[1727109122302,3.51436359,143.22,143.15,15.04]
[1727109122502,15.04,143.24,143.15,17.7582]
[1727109122694,15.04,143.22,143.15,2.7182]
[1727109122894,3.4918,143.19,143.15,6.2107]
[1727109123105,15.04,143.21,143.15,2.7182]
[1727109123294,3.492,143.18,143.15,2.7182]
[1727109123497,3.492,143.18,143.15,1.378]
[1727109123995,3.4922,143.17,143.14,1.4535]